fUSD/lending_fUSD_20260622
["ID","MTS","AMOUNT","RATE_DAILY","PERIOD"]
[426019378,1782119439000,-500.0,0.00013698,2]
[426019381,1782119439000,-500.0,0.00013698,2]
[426019380,1782119439000,-500.0,0.00013698,2]
[426019383,1782119439000,-500.0,0.00013698,2]
[426019382,1782119439000,-500.0,0.00013698,2]
[426019384,1782119439000,-500.0,0.00013698,2]
[426019385,1782119439000,-500.0,0.00013698,2]
[426019389,1782119439000,-500.0,0.00013698,2]
[426019386,1782119439000,-500.0,0.00013698,2]
[426019387,1782119439000,-500.0,0.00013698,2]
[426019388,1782119439000,-514.46747636,0.00013698,2]
[426019404,1782119439000,-500.0,0.00013752,2]
[426019390,1782119439000,-500.0,0.00013698,2]
[426019393,1782119439000,-438.94367733,0.00013698,2]
[426019394,1782119439000,-430.50132064,0.00013716,2]
[426019395,1782119439000,-150.0,0.00013749,7]
[426019392,1782119439000,-500.0,0.00013698,2]
[426019398,1782119439000,-150.0,0.00013752,2]
[426019399,1782119439000,-150.0,0.00013752,2]
[426019396,1782119439000,-152.98657127,0.00013749,7]
[426019401,1782119439000,-150.0,0.00013752,2]
[426019400,1782119439000,-500.0,0.00013752,2]
[426019397,1782119439000,-150.0,0.00013752,2]
[426019402,1782119439000,-500.0,0.00013752,2]
[426019403,1782119439000,-150.0,0.00013752,2]
[426019391,1782119439000,-500.0,0.00013698,2]
[426019436,1782119439000,-1813.81877309,0.0001499,2]
[426019434,1782119439000,-1992.77219624,0.000149,2]
[426019437,1782119439000,-1000.0,0.00014999,2]
[426019474,1782119439000,-500.0,0.00014999,2]
[426019473,1782119439000,-500.0,0.00014999,2]
[426019471,1782119439000,-500.0,0.00014999,2]
[426019464,1782119439000,-500.0,0.00014999,2]
[426019468,1782119439000,-500.0,0.00014999,2]
[426019470,1782119439000,-500.0,0.00014999,2]
[426019476,1782119439000,-500.0,0.00014999,2]
[426019486,1782119439000,-500.0,0.00014999,2]
[426019475,1782119439000,-500.0,0.00014999,2]
[426019479,1782119439000,-500.0,0.00014999,2]
[426019478,1782119439000,-500.0,0.00014999,2]
[426019477,1782119439000,-500.0,0.00014999,2]
[426019466,1782119439000,-500.0,0.00014999,2]
[426019480,1782119439000,-500.0,0.00014999,2]
[426019483,1782119439000,-500.0,0.00014999,2]
[426019481,1782119439000,-500.0,0.00014999,2]
[426019485,1782119439000,-500.0,0.00014999,2]
[426019484,1782119439000,-500.0,0.00014999,2]
[426019487,1782119439000,-500.0,0.00014999,2]
[426019493,1782119439000,-500.0,0.00014999,2]
[426019489,1782119439000,-500.0,0.00014999,2]
[426019491,1782119439000,-500.0,0.00014999,2]
[426019488,1782119439000,-500.0,0.00014999,2]
[426019492,1782119439000,-500.0,0.00014999,2]
[426019490,1782119439000,-500.0,0.00014999,2]
[426019430,1782119439000,-3315.43262122,0.000149,3]
[426019482,1782119439000,-500.0,0.00014999,2]
[426019469,1782119439000,-500.0,0.00014999,2]
[426019494,1782119439000,-500.0,0.00014999,2]
[426019467,1782119439000,-500.0,0.00014999,2]
[426019472,1782119439000,-500.0,0.00014999,2]
[426019438,1782119439000,-1000.0,0.00014999,2]
[426019440,1782119439000,-1000.0,0.00014999,2]
[426019442,1782119439000,-1000.0,0.00014999,2]
[426019441,1782119439000,-1000.0,0.00014999,2]
[426019443,1782119439000,-1000.0,0.00014999,2]
[426019451,1782119439000,-1000.0,0.00014999,2]
[426019446,1782119439000,-1000.0,0.00014999,2]
[426019449,1782119439000,-1000.0,0.00014999,2]
[426019447,1782119439000,-1000.0,0.00014999,2]
[426019448,1782119439000,-1000.0,0.00014999,2]
[426019444,1782119439000,-1000.0,0.00014999,2]
[426019450,1782119439000,-1000.0,0.00014999,2]
[426019435,1782119439000,-1960.37678739,0.000149,2]
[426019453,1782119439000,-1000.0,0.00014999,2]
[426019465,1782119439000,-500.0,0.00014999,2]
[426019461,1782119439000,-500.0,0.00014999,2]
[426019462,1782119439000,-500.0,0.00014999,2]
[426019459,1782119439000,-949.6726977,0.00014999,2]
[426019445,1782119439000,-1000.0,0.00014999,2]
[426019458,1782119439000,-1000.0,0.00014999,2]
[426019460,1782119439000,-500.0,0.00014999,2]
[426019455,1782119439000,-1000.0,0.00014999,2]
[426019456,1782119439000,-1000.0,0.00014999,2]
[426019454,1782119439000,-1000.0,0.00014999,2]
[426019463,1782119439000,-500.0,0.00014999,2]
[426019452,1782119439000,-1000.0,0.00014999,2]
[426019457,1782119439000,-1000.0,0.00014999,2]
[426019536,1782119440000,-500.0,0.00014999,2]
[426019545,1782119440000,-500.0,0.00014999,2]
[426019535,1782119440000,-500.0,0.00014999,2]
[426019530,1782119440000,-500.0,0.00014999,2]
[426019526,1782119440000,-500.0,0.00014999,2]
[426019532,1782119440000,-500.0,0.00014999,2]
[426019533,1782119440000,-500.0,0.00014999,2]
[426019529,1782119440000,-500.0,0.00014999,2]
[426019528,1782119440000,-500.0,0.00014999,2]
[426019525,1782119440000,-500.0,0.00014999,2]
[426019531,1782119440000,-500.0,0.00014999,2]
[426019538,1782119440000,-500.0,0.00014999,2]
[426019544,1782119440000,-500.0,0.00014999,2]
[426019534,1782119440000,-500.0,0.00014999,2]
[426019546,1782119440000,-500.0,0.00014999,2]
[426019539,1782119440000,-500.0,0.00014999,2]
[426019540,1782119440000,-500.0,0.00014999,2]
[426019543,1782119440000,-500.0,0.00014999,2]
[426019542,1782119440000,-500.0,0.00014999,2]
[426019541,1782119440000,-500.0,0.00014999,2]
[426019547,1782119440000,-500.0,0.00014999,2]
[426019557,1782119440000,-157.911035,0.00015,2]
[426019548,1782119440000,-500.0,0.00014999,2]
[426019549,1782119440000,-500.0,0.00014999,2]
[426019527,1782119440000,-500.0,0.00014999,2]
[426019537,1782119440000,-500.0,0.00014999,2]
[426019523,1782119440000,-500.0,0.00014999,2]
[426019506,1782119440000,-500.0,0.00014999,2]
[426019521,1782119440000,-500.0,0.00014999,2]
[426019497,1782119440000,-500.0,0.00014999,2]
[426019498,1782119440000,-500.0,0.00014999,2]
[426019495,1782119440000,-500.0,0.00014999,2]
[426019496,1782119440000,-500.0,0.00014999,2]
[426019510,1782119440000,-500.0,0.00014999,2]
[426019500,1782119440000,-500.0,0.00014999,2]
[426019499,1782119440000,-500.0,0.00014999,2]
[426019501,1782119440000,-500.0,0.00014999,2]
[426019502,1782119440000,-500.0,0.00014999,2]
[426019504,1782119440000,-500.0,0.00014999,2]
[426019503,1782119440000,-500.0,0.00014999,2]
[426019507,1782119440000,-500.0,0.00014999,2]
[426019524,1782119440000,-500.0,0.00014999,2]
[426019509,1782119440000,-500.0,0.00014999,2]
[426019508,1782119440000,-500.0,0.00014999,2]
[426019511,1782119440000,-500.0,0.00014999,2]
[426019518,1782119440000,-500.0,0.00014999,2]
[426019558,1782119440000,-165.205048,0.00015,2]
[426019514,1782119440000,-500.0,0.00014999,2]
[426019515,1782119440000,-500.0,0.00014999,2]
[426019519,1782119440000,-500.0,0.00014999,2]
[426019512,1782119440000,-500.0,0.00014999,2]
[426019513,1782119440000,-500.0,0.00014999,2]
[426019516,1782119440000,-500.0,0.00014999,2]
[426019517,1782119440000,-500.0,0.00014999,2]
[426019522,1782119440000,-500.0,0.00014999,2]
[426019505,1782119440000,-500.0,0.00014999,2]
[426019551,1782119440000,-300.0,0.00014999,2]
[426019520,1782119440000,-500.0,0.00014999,2]
[426019552,1782119440000,-666.0,0.00014999,2]
[426019594,1782119440000,-500.0,0.00016438,2]
[426019590,1782119440000,-500.0,0.00016438,2]
[426019592,1782119440000,-500.0,0.00016438,2]
[426019586,1782119440000,-500.0,0.00016438,2]
[426019588,1782119440000,-500.0,0.00016438,2]
[426019593,1782119440000,-500.0,0.00016438,2]
[426019587,1782119440000,-500.0,0.00016438,2]
[426019591,1782119440000,-500.0,0.00016438,2]
[426019589,1782119440000,-500.0,0.00016438,2]
[426019596,1782119440000,-500.0,0.00016438,2]
[426019595,1782119440000,-500.0,0.00016438,2]
[426019602,1782119440000,-500.0,0.00016438,2]
[426019585,1782119440000,-500.0,0.00016438,2]
[426019599,1782119440000,-500.0,0.00016438,2]
[426019600,1782119440000,-500.0,0.00016438,2]
[426019598,1782119440000,-500.0,0.00016438,2]
[426019603,1782119440000,-500.0,0.00016438,2]
[426019604,1782119440000,-500.0,0.00016438,2]
[426019605,1782119440000,-500.0,0.00016438,2]
[426019606,1782119440000,-500.0,0.00016438,2]
[426019608,1782119440000,-500.0,0.00016438,2]
[426019607,1782119440000,-500.0,0.00016438,2]
[426019609,1782119440000,-500.0,0.00016438,2]
[426019610,1782119440000,-500.0,0.00016438,2]
[426019611,1782119440000,-500.0,0.00016438,2]
[426019550,1782119440000,-300.0,0.00014999,2]
[426019597,1782119440000,-500.0,0.00016438,2]
[426019584,1782119440000,-500.0,0.00016438,2]
[426019601,1782119440000,-500.0,0.00016438,2]
[426019578,1782119440000,-500.0,0.00016438,2]
[426019579,1782119440000,-500.0,0.00016438,2]
[426019553,1782119440000,-18170712.80967215,0.00015,2]
[426019556,1782119440000,-429.52003206,0.00015,2]
[426019555,1782119440000,-2039819.94084035,0.00015,2]
[426019559,1782119440000,-165.205048,0.00015,2]
[426019562,1782119440000,-345.77740706,0.00015,2]
[426019561,1782119440000,-165.205048,0.00015,2]
[426019563,1782119440000,-577.19,0.00015,2]
[426019567,1782119440000,-151.0,0.00015,2]
[426019560,1782119440000,-165.205048,0.00015,2]
[426019566,1782119440000,-151.0,0.00015,2]
[426019569,1782119440000,-173.283087,0.00015068,2]
[426019568,1782119440000,-150.0,0.00015068,2]
[426019570,1782119440000,-604.30390869,0.000151,2]
[426019554,1782119440000,-2521.44272009,0.00015,14]
[426019581,1782119440000,-500.0,0.00016438,2]
[426019565,1782119440000,-153.53696,0.00015,2]
[426019572,1782119440000,-472.71,0.00015705,2]
[426019582,1782119440000,-500.0,0.00016438,2]
[426019583,1782119440000,-350.0,0.00016438,2]
[426019571,1782119440000,-155.0,0.0001519,2]
[426019573,1782119440000,-736.0,0.00015833,2]
[426019574,1782119440000,-984.05,0.00016055,2]
[426019575,1782119440000,-173.44,0.00016075,2]
[426019564,1782119440000,-251.29427411,0.00015,10]
[426019576,1782119440000,-1500.0,0.00016249,2]
[426019580,1782119440000,-500.0,0.00016438,2]
[426019577,1782119440000,-332.0,0.00016438,2]
[426019648,1782119441000,-150.99,0.00017728,2]
[426019651,1782119441000,-10267.81255953,0.000179,2]
[426019644,1782119441000,-1220.72,0.00017728,2]
[426019653,1782119441000,-107.14071565,0.00018,2]
[426019652,1782119441000,-1002.84984918,0.000179,2]
[426019646,1782119441000,-1563.85,0.00017728,2]
[426019656,1782119441000,-10267.81255953,0.000181,2]
[426019655,1782119441000,-1153.44871386,0.00018,2]
[426019654,1782119441000,-305.33921526,0.00018,2]
[426019645,1782119441000,-371.31,0.00017728,2]
[426019643,1782119441000,-999.99,0.00017728,2]
[426019650,1782119441000,-1672.7364795,0.00017893,2]
[426019647,1782119441000,-5066.39,0.00017728,2]
[426019649,1782119441000,-9999.99,0.00017728,2]
[426019665,1782119441000,-1153.44871386,0.000184,2]
[426019663,1782119441000,-10267.81255953,0.000184,2]
[426019660,1782119441000,-1153.44871386,0.000182,2]
[426019661,1782119441000,-1002.84984918,0.000182,2]
[426019667,1782119441000,-1734.62772924,0.00018441,2]
[426019659,1782119441000,-305.33921526,0.000182,2]
[426019664,1782119441000,-305.33921526,0.000184,2]
[426019668,1782119441000,-245.1,0.00018455,2]
[426019666,1782119441000,-332.0,0.0001841,2]
[426019662,1782119441000,-155.0,0.00018227,2]
[426019658,1782119441000,-10267.81255953,0.000182,2]
[426019670,1782119441000,-1153.44871386,0.000185,2]
[426019669,1782119441000,-305.33921526,0.000185,2]
[426019657,1782119441000,-1002.84984918,0.000181,2]
[426019642,1782119441000,-6230.08,0.00017728,2]
[426019617,1782119441000,-151.0,0.00016438,2]
[426019638,1782119441000,-984.05,0.00017514,2]
[426019671,1782119441000,-305.33921526,0.000187,2]
[426019613,1782119441000,-629.25308484,0.00016438,2]
[426019616,1782119441000,-151.0,0.00016438,2]
[426019614,1782119441000,-500.0,0.00016438,2]
[426019612,1782119441000,-500.0,0.00016438,2]
[426019615,1782119441000,-151.0,0.00016438,2]
[426019619,1782119441000,-10267.81255953,0.000167,2]
[426019622,1782119441000,-150.0,0.0001673,7]
[426019629,1782119441000,-10267.81255953,0.000172,2]
[426019618,1782119441000,-653.57150844,0.00016534,2]
[426019630,1782119441000,-1002.84984918,0.000172,2]
[426019620,1782119441000,-1002.84984918,0.000167,2]
[426019627,1782119441000,-1002.84984918,0.00017,2]
[426019633,1782119441000,-10267.81255953,0.000174,2]
[426019623,1782119441000,-1555.5,0.00016797,2]
[426019625,1782119441000,-1002.84984918,0.000168,2]
[426019624,1782119441000,-10267.81255953,0.000168,2]
[426019628,1782119441000,-283.576252,0.00017025,2]
[426019621,1782119441000,-750.0,0.0001673,2]
[426019631,1782119441000,-1252.0,0.00017243,2]
[426019634,1782119441000,-1002.84984918,0.000174,2]
[426019636,1782119441000,-10267.81255953,0.000175,2]
[426019632,1782119441000,-1613.0535,0.00017345,2]
[426019637,1782119441000,-1002.84984918,0.000175,2]
[426019641,1782119441000,-9999.99,0.00017728,2]
[426019635,1782119441000,-577.19,0.000174,2]
[426019640,1782119441000,-1002.84984918,0.000177,2]
[426019639,1782119441000,-10267.81255953,0.000177,2]
[426019626,1782119441000,-10267.81255953,0.00017,2]
[426019673,1782119441000,-577.19,0.000187,2]
[426019672,1782119441000,-1153.44871386,0.000187,2]
[426019678,1782119441000,-3648.0,0.00018903,2]
[426019711,1782119441000,-152.0,0.0002,2]
[426019709,1782119441000,-156.0,0.0002,2]
[426019707,1782119441000,-663.0,0.0002,2]
[426019708,1782119441000,-299.999999,0.0002,2]
[426019710,1782119441000,-339.0,0.0002,2]
[426019713,1782119441000,-582.0,0.0002,2]
[426019714,1782119441000,-304.0,0.0002,2]
[426019716,1782119441000,-2000.0,0.0002,7]
[426019717,1782119441000,-1934.38338736,0.00020085,2]
[426019712,1782119441000,-154.0,0.0002,2]
[426019715,1782119441000,-213.91,0.0002,2]
[426019719,1782119441000,-500.0,0.00020211,2]
[426019726,1782119441000,-785.0,0.00020606,2]
[426019706,1782119441000,-490.0,0.0002,2]
[426019727,1782119441000,-1030.0,0.00020633,2]
[426019728,1782119441000,-322.37792121,0.00020633,2]
[426019718,1782119441000,-300.99750144,0.000202,2]
[426019720,1782119441000,-821.26435144,0.00020274,2]
[426019725,1782119441000,-300.99750144,0.000206,2]
[426019724,1782119441000,-577.19,0.000204,2]
[426019721,1782119441000,-200.0,0.00020311,2]
[426019723,1782119441000,-300.99750144,0.000204,2]
[426019722,1782119441000,-332.0,0.00020381,2]
[426019730,1782119441000,-269.29147214,0.00020633,2]
[426019732,1782119441000,-1107.63007,0.00020633,2]
[426019731,1782119441000,-200.0,0.00020633,2]
[426019734,1782119441000,-1148.61238259,0.00020633,2]
[426019733,1782119441000,-151.0,0.00020633,2]
[426019729,1782119441000,-1068.11,0.00020633,2]
[426019703,1782119441000,-300.99750144,0.0002,2]
[426019735,1782119441000,-1191.11104074,0.00020633,2]
[426019699,1782119441000,-1865.36488656,0.00019537,2]
[426019702,1782119441000,-400.0,0.0002,2]
[426019674,1782119441000,-2058.0,0.00018724,5]
[426019675,1782119441000,-2341.0,0.00018724,5]
[426019677,1782119441000,-6082.0,0.00018903,2]
[426019679,1782119441000,-1000.0,0.00018936,2]
[426019680,1782119441000,-1798.80895522,0.00018989,2]
[426019683,1782119441000,-653.57150844,0.00019167,2]
[426019681,1782119441000,-1142.49758299,0.00019,2]
[426019682,1782119441000,-365.9214821,0.0001901,7]
[426019688,1782119441000,-151.0,0.00019178,2]
[426019691,1782119441000,-150.0,0.00019468,2]
[426019684,1782119441000,-250.0,0.00019178,2]
[426019685,1782119441000,-250.0,0.00019178,2]
[426019687,1782119441000,-268.70738278,0.00019178,2]
[426019676,1782119441000,-408.0,0.00018788,2]
[426019690,1782119441000,-150.186,0.00019468,2]
[426019689,1782119441000,-156.645028,0.00019178,2]
[426019698,1782119441000,-1229.25,0.00019468,2]
[426019701,1782119441000,-184.51424214,0.000199,2]
[426019700,1782119441000,-500.0,0.00019623,2]
[426019696,1782119441000,-387.0,0.00019468,2]
[426019693,1782119441000,-150.0,0.00019468,2]
[426019705,1782119441000,-154.0,0.0002,2]
[426019695,1782119441000,-1279.283,0.00019468,2]
[426019704,1782119441000,-151.0,0.0002,2]
[426019694,1782119441000,-3561.0,0.00019468,2]
[426019692,1782119441000,-150.0,0.00019468,2]
[426019686,1782119441000,-250.0,0.00019178,2]
[426019697,1782119441000,-1368.605,0.00019468,2]
[426019773,1782119442000,-500.0,0.00020633,2]
[426019774,1782119442000,-500.0,0.00020633,2]
[426019775,1782119442000,-1910.18787185,0.00020633,2]
[426019778,1782119442000,-151.0,0.00020633,2]
[426019783,1782119442000,-151.0,0.00020633,2]
[426019770,1782119442000,-1842.0326633,0.00020633,2]
[426019780,1782119442000,-500.0,0.00020633,2]
[426019777,1782119442000,-500.0,0.00020633,2]
[426019782,1782119442000,-152.0,0.00020633,2]
[426019781,1782119442000,-500.0,0.00020633,2]
[426019776,1782119442000,-152.0,0.00020633,2]
[426019779,1782119442000,-1980.8648231,0.00020633,2]
[426019796,1782119442000,-500.0,0.00020633,2]
[426019787,1782119442000,-151.0,0.00020633,2]
[426019784,1782119442000,-2054.15682156,0.00020633,2]
[426019785,1782119442000,-500.0,0.00020633,2]
[426019795,1782119442000,-151.0,0.00020633,2]
[426019791,1782119442000,-500.0,0.00020633,2]
[426019790,1782119442000,-151.0,0.00020633,2]
[426019788,1782119442000,-500.0,0.00020633,2]
[426019797,1782119442000,-500.0,0.00020633,2]
[426019789,1782119442000,-152.0,0.00020633,2]
[426019793,1782119442000,-152.0,0.00020633,2]
[426019771,1782119442000,-151.0,0.00020633,2]
[426019792,1782119442000,-500.0,0.00020633,2]
[426019786,1782119442000,-152.0,0.00020633,2]
[426019767,1782119442000,-500.0,0.00020633,2]
[426019751,1782119442000,-745.05719979,0.00020633,2]
[426019769,1782119442000,-152.0,0.00020633,2]
[426019810,1782119442000,-500.0,0.00020633,2]
[426019736,1782119442000,-1235.18214925,0.00020633,2]
[426019741,1782119442000,-174.61919141,0.00020633,2]
[426019740,1782119442000,-151.0,0.00020633,2]
[426019737,1782119442000,-1280.88388877,0.00020633,2]
[426019742,1782119442000,-1428.38747117,0.00020633,2]
[426019738,1782119442000,-1328.27659266,0.00020633,2]
[426019739,1782119442000,-1377.42282658,0.00020633,2]
[426019744,1782119442000,-1481.2378076,0.00020633,2]
[426019743,1782119442000,-578.20924308,0.00020633,2]
[426019746,1782119442000,-1592.87721992,0.00020633,2]
[426019748,1782119442000,-695.39793187,0.00020633,2]
[426019747,1782119442000,-500.0,0.00020633,2]
[426019745,1782119442000,-1536.04360648,0.00020633,2]
[426019749,1782119442000,-151.0,0.00020633,2]
[426019752,1782119442000,-152.0,0.00020633,2]
[426019753,1782119442000,-1651.81367706,0.00020633,2]
[426019750,1782119442000,-1446.00548098,0.00020633,2]
[426019754,1782119442000,-500.0,0.00020633,2]
[426019757,1782119442000,-1712.93078311,0.00020633,2]
[426019758,1782119442000,-201.93286098,0.00020633,2]
[426019755,1782119442000,-151.0,0.00020633,2]
[426019762,1782119442000,-500.0,0.00020633,2]
[426019756,1782119442000,-151.0,0.00020633,2]
[426019760,1782119442000,-152.0,0.00020633,2]
[426019764,1782119442000,-151.0,0.00020633,2]
[426019768,1782119442000,-500.0,0.00020633,2]
[426019766,1782119442000,-1776.30922209,0.00020633,2]
[426019799,1782119442000,-152.0,0.00020633,2]
[426019813,1782119442000,-269.29147214,0.00020688,2]
[426019798,1782119442000,-151.0,0.00020633,2]
[426019835,1782119442000,-151.0,0.00021,2]
[426019834,1782119442000,-1918.09597214,0.00021,2]
[426019836,1782119442000,-154.0,0.00021,2]
[426019838,1782119442000,-663.0,0.00021,2]
[426019837,1782119442000,-490.0,0.00021,2]
[426019840,1782119442000,-339.0,0.00021,2]
[426019839,1782119442000,-169.84484808,0.00021,2]
[426019841,1782119442000,-152.0,0.00021,2]
[426019844,1782119442000,-304.0,0.00021,2]
[426019842,1782119442000,-154.0,0.00021,2]
[426019843,1782119442000,-582.0,0.00021,2]
[426019845,1782119442000,-269.29147214,0.00021018,2]
[426019847,1782119442000,-269.29147214,0.00021073,2]
[426019848,1782119442000,-151.0,0.00021073,2]
[426019850,1782119442000,-151.0,0.00021128,2]
[426019849,1782119442000,-269.29147214,0.00021128,2]
[426019855,1782119442000,-200.0,0.00021181,2]
[426019854,1782119442000,-181.08010149,0.00021181,2]
[426019851,1782119442000,-322.37792121,0.00021181,2]
[426019846,1782119442000,-151.0,0.00021018,2]
[426019853,1782119442000,-151.0,0.00021181,2]
[426019857,1782119442000,-745.05719979,0.00021181,2]
[426019856,1782119442000,-151.0,0.00021181,2]
[426019858,1782119442000,-209.40437684,0.00021181,2]
[426019859,1782119442000,-269.29147214,0.00021183,2]
[426019833,1782119442000,-151.0,0.00020963,2]
[426019829,1782119442000,-1506.42,0.00020915,2]
[426019852,1782119442000,-151.0,0.00021181,2]
[426019826,1782119442000,-151.0,0.00020908,2]
[426019827,1782119442000,-500.0,0.00020915,2]
[426019802,1782119442000,-152.0,0.00020633,2]
[426019809,1782119442000,-500.0,0.00020633,2]
[426019801,1782119442000,-151.0,0.00020633,2]
[426019800,1782119442000,-500.0,0.00020633,2]
[426019803,1782119442000,-500.0,0.00020633,2]
[426019807,1782119442000,-500.0,0.00020633,2]
[426019806,1782119442000,-152.0,0.00020633,2]
[426019804,1782119442000,-151.0,0.00020633,2]
[426019808,1782119442000,-151.0,0.00020633,2]
[426019812,1782119442000,-517.16714386,0.00020633,2]
[426019817,1782119442000,-151.0,0.00020743,2]
[426019814,1782119442000,-151.0,0.00020688,2]
[426019811,1782119442000,-500.0,0.00020633,2]
[426019820,1782119442000,-300.99750144,0.000208,2]
[426019818,1782119442000,-269.29147214,0.00020798,2]
[426019830,1782119442000,-314.0,0.00020915,2]
[426019823,1782119442000,-151.0,0.00020853,2]
[426019832,1782119442000,-269.29147214,0.00020963,2]
[426019824,1782119442000,-151.0,0.00020907,2]
[426019831,1782119442000,-165.69728999,0.00020959,2]
[426019822,1782119442000,-269.29147214,0.00020853,2]
[426019815,1782119442000,-601.05380042,0.000207,2]
[426019828,1782119442000,-500.0,0.00020915,2]
[426019816,1782119442000,-269.29147214,0.00020743,2]
[426019825,1782119442000,-269.29147214,0.00020908,2]
[426019821,1782119442000,-500.0,0.00020818,2]
[426019819,1782119442000,-151.0,0.00020798,2]
[426019883,1782119443000,-151.0,0.00021729,2]
[426019894,1782119443000,-450.0,0.00022,2]
[426019887,1782119443000,-653.57150844,0.00021801,2]
[426019888,1782119443000,-461.83,0.0002185,2]
[426019889,1782119443000,-1918.09597214,0.000219,2]
[426019893,1782119443000,-176.90076653,0.00021923,2]
[426019892,1782119443000,-5000.0,0.00021918,2]
[426019890,1782119443000,-6082.0,0.00021903,2]
[426019891,1782119443000,-3648.0,0.00021903,2]
[426019885,1782119443000,-217.15233878,0.00021729,2]
[426019902,1782119443000,-155.90962168,0.00022,2]
[426019896,1782119443000,-159.12492282,0.00022,2]
[426019898,1782119443000,-490.0,0.00022,2]
[426019897,1782119443000,-2213.44721922,0.00022,2]
[426019895,1782119443000,-151.22809012,0.00022,2]
[426019900,1782119443000,-339.0,0.00022,2]
[426019903,1782119443000,-582.0,0.00022,2]
[426019901,1782119443000,-152.0,0.00022,2]
[426019907,1782119443000,-937.45,0.00022,2]
[426019904,1782119443000,-304.0,0.00022,2]
[426019909,1782119443000,-151.0,0.00022003,2]
[426019899,1782119443000,-663.0,0.00022,2]
[426019886,1782119443000,-577.19,0.000218,2]
[426019873,1782119443000,-500.0,0.00021707,2]
[426019881,1782119443000,-151.0,0.00021729,2]
[426019905,1782119443000,-1779.0,0.00022,2]
[426019868,1782119443000,-151.0,0.00021455,2]
[426019867,1782119443000,-500.0,0.00021442,2]
[426019861,1782119443000,-1918.09597214,0.000212,2]
[426019862,1782119443000,-269.29147223,0.00021238,2]
[426019860,1782119443000,-151.0,0.00021183,2]
[426019863,1782119443000,-151.0,0.00021238,2]
[426019865,1782119443000,-200.0,0.00021335,2]
[426019866,1782119443000,-1918.09597214,0.000214,2]
[426019864,1782119443000,-820.21,0.00021273,2]
[426019869,1782119443000,-1918.09597214,0.000216,2]
[426019870,1782119443000,-500.0,0.00021707,2]
[426019876,1782119443000,-377.89452257,0.00021707,2]
[426019877,1782119443000,-150.0,0.00021707,2]
[426019874,1782119443000,-500.0,0.00021707,2]
[426019878,1782119443000,-322.37792121,0.00021729,2]
[426019875,1782119443000,-500.0,0.00021707,2]
[426019872,1782119443000,-500.0,0.00021707,2]
[426019882,1782119443000,-200.0,0.00021729,2]
[426019880,1782119443000,-187.78006524,0.00021729,2]
[426019879,1782119443000,-151.0,0.00021729,2]
[426019884,1782119443000,-745.05719979,0.00021729,2]
[426019871,1782119443000,-500.0,0.00021707,2]
[426019910,1782119443000,-393.0,0.00022044,7]
[426019911,1782119443000,-244.96425062,0.0002211,2]
[426019934,1782119443000,-1276.0,0.00022468,2]
[426019940,1782119443000,-150.0,0.0002254,2]
[426019937,1782119443000,-1229.0,0.00022468,2]
[426019944,1782119443000,-151.0,0.00022825,2]
[426019943,1782119443000,-322.37792121,0.00022825,2]